bitfinex-derivatives/quotes_ETHF0:USTF0_20241129
["timestamp","ask_amount","ask_price","bid_price","bid_amount"]
[1732900052895,3.6355,3587.1,3586.4,0.79062606]
[1732900053196,0.69629,3587.0,3586.0,5.0]
[1732900053393,0.69629,3587.0,3583.5,3.09]
[1732900053394,0.27876,3583.9,3583.5,3.09]
[1732900053592,3.2078,3583.6,3583.5,3.14999999]
[1732900053794,3.2078,3584.1,3583.5,1.49212518]
[1732900054189,3.2078,3583.6,3583.5,1.46212518]
[1732900054390,3.2078,3583.6,3582.0,5.7078]
[1732900054391,3.2078,3583.6,3582.0,2.5]
[1732900054693,3.2078,3582.8,3582.0,2.87]
[1732900054994,3.2078,3583.5,3582.7,3.2078]
[1732900055195,3.2078,3583.0,3582.7,0.03]
[1732900055389,3.17538,3583.0,3582.9,0.27883]
[1732900055693,0.4085,3584.7,3583.4,0.27879]
[1732900055694,3.2078,3583.6,3583.4,0.27879]
[1732900055898,3.2078,3583.5,3583.2,0.2788]
[1732900056199,3.2078,3583.5,3582.5,1.549]
[1732900056200,3.2078,3583.5,3582.6,40.8]
[1732900056395,3.2078,3583.0,3582.6,41.09]
[1732900056594,3.2078,3583.4,3583.3,0.2788]
[1732900056994,3.2078,3583.4,3582.6,44.0078]
[1732900057194,3.2078,3583.4,3583.3,0.2788]
[1732900057398,3.2078,3583.4,3582.7,1.549]
[1732900057598,3.2078,3583.4,3582.7,0.08]
[1732900057794,3.2078,3582.9,3582.8,0.27884]
[1732900058196,3.2078,3583.3,3582.4,1.55]
[1732900058396,3.2078,3583.3,3583.2,0.27881]
[1732900059597,3.2078,3583.3,3582.2,1.86407864]
[1732900059598,3.2078,3583.3,3582.2,0.27865864]
[1732900059802,3.2078,3583.0,3582.9,0.27883]
[1732900060502,3.2078,3583.0,3582.9,0.41883]
[1732900060708,3.2078,3583.0,3582.9,0.27883]
[1732900060897,3.28806312,3584.2,3582.9,0.27883]
[1732900061204,3.2078,3583.5,3582.7,1.55]
[1732900061404,3.2078,3583.5,3582.7,1.6]
[1732900061601,3.2078,3583.5,3583.2,0.27881]
[1732900061803,3.2078,3583.5,3583.4,0.27879]
[1732900062210,3.2078,3583.5,3582.7,1.55]
[1732900062505,3.2078,3583.5,3583.4,0.27879]
[1732900062897,3.2078,3583.9,3583.4,0.36879]
[1732900063095,3.2078,3583.9,3583.4,0.09]
[1732900063497,3.28806312,3584.4,3583.5,40.8]
[1732900063695,3.28806312,3584.4,3583.2,0.4266]
[1732900063696,3.2078,3583.6,3583.2,0.4266]
[1732900064405,3.2078,3583.6,3583.2,0.4866]
[1732900064704,3.2078,3583.6,3583.3,42.35]
[1732900064902,3.2078,3583.6,3583.3,43.28]
[1732900065706,3.2078,3583.6,3583.3,2.48]
[1732900066101,3.2078,3583.6,3583.2,1.9766]
[1732900066311,3.2078,3583.6,3583.2,2.2566]
[1732900066701,3.2078,3583.6,3583.3,1.55]
[1732900066900,3.2078,3583.6,3583.3,1.77]
[1732900067200,3.2078,3583.6,3582.9,0.55779881]
[1732900067399,0.4085,3584.7,3582.9,1.10896881]
[1732900067400,3.2078,3583.1,3582.9,1.10896881]
[1732900067595,1.81298314,3583.1,3582.9,1.38779881]
[1732900067803,1.81298314,3583.1,3582.9,6.10896881]
[1732900068004,1.81298314,3583.1,3583.0,0.69253]
[1732900068300,1.81298314,3583.1,3583.0,1.3437]
[1732900068708,1.81298314,3583.1,3583.0,1.9637]
[1732900069210,1.81298314,3583.1,3582.7,0.4333]
[1732900069707,1.81298314,3583.1,3582.8,1.55]
[1732900070003,0.4085,3584.7,3582.8,5.03806312]
[1732900070004,3.2078,3583.5,3582.8,5.03806312]
[1732900070208,3.2078,3583.5,3582.8,10.03806312]
[1732900070396,3.2078,3583.5,3583.2,0.27881]
[1732900070603,3.2078,3583.5,3583.2,0.51]
[1732900071202,0.4085,3584.7,3583.5,0.27878]
[1732900071203,3.2078,3583.9,3583.5,0.27878]
[1732900071412,3.2078,3583.9,3583.5,0.36]
[1732900071604,3.2078,3583.9,3583.7,0.27877]
[1732900071911,0.4085,3584.7,3583.8,1.55]
[1732900071912,3.2078,3584.3,3583.8,1.55]
[1732900072107,3.2078,3584.3,3583.8,1.8]
[1732900072409,3.2078,3584.3,3584.0,0.27875]
[1732900072605,3.2078,3584.3,3584.2,0.27873]
[1732900072806,3.2078,3584.3,3584.0,0.27874]
[1732900073002,3.2078,3584.3,3584.1,0.27873]
[1732900073202,3.2078,3584.9,3584.1,8.4278]
[1732900073499,3.2078,3584.9,3584.6,0.2787]
[1732900073707,3.2078,3584.9,3584.1,8.4278]
[1732900073708,3.2078,3584.9,3584.2,0.4234]
[1732900074008,3.2078,3585.4,3584.8,0.27868]
[1732900074206,3.2078,3585.4,3584.9,1.55]
[1732900075605,3.2078,3585.4,3585.0,0.27866]
[1732900075799,3.2078,3585.4,3585.1,0.27865]
[1732900076102,3.2078,3585.4,3585.0,0.27867]
[1732900076505,3.2078,3585.4,3584.9,1.55]
[1732900076705,3.2078,3585.4,3584.1,0.09]
[1732900076903,3.2078,3585.4,3582.6,0.23359419]
[1732900076904,0.27885,3582.7,3582.6,0.23359419]
[1732900077111,3.2078,3582.7,3582.6,0.23359419]
[1732900077302,3.2078,3582.7,3582.6,2.31359419]
[1732900077705,3.42673914,3582.7,3582.6,2.08]
[1732900077912,3.42673914,3582.7,3582.6,1.20801345]
[1732900077913,4.08355658,3582.7,3582.6,1.20801345]
[1732900078616,4.14346744,3582.7,3582.6,1.20801345]
[1732900079610,3.86461744,3582.7,3582.6,1.20801345]
[1732900080514,0.4349,3583.9,3582.6,1.20801345]
[1732900080515,1.99978655,3583.1,3582.7,0.27885]
[1732900080715,0.61724692,3583.0,3582.7,0.49885]
[1732900081020,0.61724692,3582.9,3582.7,0.22]
[1732900081229,0.61852744,3582.8,3582.7,0.22]
[1732900081517,0.61852744,3582.8,3582.7,1.82885]
[1732900081713,1.99978655,3583.1,3582.7,1.82885]
[1732900081918,1.99978655,3583.1,3582.8,0.27884]
[1732900082217,0.59412212,3583.0,3582.7,1.55]
[1732900082419,0.59412212,3582.9,3582.8,0.27884]
[1732900082618,1.99978655,3583.1,3583.0,0.27883]
[1732900082811,2.59391094,3583.1,3583.0,0.53883]
[1732900083012,0.4349,3584.7,3583.0,0.53883]
[1732900083013,3.2078,3584.1,3583.1,0.69705]
[1732900083215,3.2078,3584.1,3583.2,1.11963]
[1732900083416,3.2078,3584.1,3584.0,0.27875]
[1732900083620,3.2078,3584.1,3584.0,1.82975]
[1732900084423,0.4191,3585.3,3584.4,0.27872]
[1732900084424,3.2078,3584.5,3584.4,0.27872]
[1732900084815,3.2078,3584.9,3584.0,1.551]
[1732900085015,3.2078,3584.9,3584.6,0.2787]
[1732900085422,3.2078,3584.9,3584.0,1.551]
[1732900085715,3.2078,3584.9,3584.8,0.27869]
[1732900085915,3.2078,3584.9,3584.1,0.69686]
[1732900085916,3.2078,3584.9,3584.7,0.27869]
[1732900086424,3.2078,3585.3,3585.2,0.27865]
[1732900086616,3.2078,3585.3,3585.2,1.541]
[1732900086918,3.2078,3585.3,3585.2,1.81965]
[1732900087722,3.2078,3585.3,3585.2,2.05965]
[1732900088021,3.2078,3585.3,3585.2,1.81965]
[1732900088218,3.2078,3585.3,3585.2,2.04965]
[1732900088427,3.2078,3585.7,3585.6,0.27862]
[1732900090025,3.2078,3586.1,3586.0,0.27859]
[1732900090330,3.2078,3586.1,3585.2,1.541]
[1732900090521,3.2078,3586.1,3585.9,0.2786]
[1732900091221,3.2078,3586.1,3585.2,1.541]
[1732900091520,3.2078,3586.1,3585.2,1.891]
[1732900091721,3.2078,3586.1,3586.0,0.27859]
[1732900093125,3.2078,3586.1,3585.3,0.69662]
[1732900093317,3.2078,3585.7,3585.6,0.27862]
[1732900093625,3.2078,3585.7,3585.6,0.50862]
[1732900094721,3.2078,3586.1,3586.0,0.27859]
[1732900094919,3.2078,3586.1,3586.0,0.64859]
[1732900095120,3.2078,3586.6,3586.5,0.27855]
[1732900095322,3.2078,3586.6,3586.5,1.82855]
[1732900096029,3.2078,3587.2,3587.1,0.27851]
[1732900096817,3.2078,3587.2,3586.5,1.54]
[1732900097022,3.2078,3587.2,3587.0,0.27851]
[1732900097330,3.2078,3587.2,3586.5,1.54]
[1732900097531,3.2078,3587.2,3587.1,0.27851]
[1732900099828,3.2078,3587.2,3587.1,1.81851]
[1732900100632,3.2078,3587.2,3586.7,0.27854]
[1732900100833,3.2078,3587.2,3585.2,0.69663]
[1732900100834,3.2078,3586.8,3585.2,0.69663]
[1732900101029,3.28806312,3587.0,3585.1,3.2078]
[1732900101030,3.2078,3585.8,3585.6,0.76871533]
[1732900101535,3.2078,3585.8,3585.6,0.30871533]
[1732900101731,3.2078,3585.8,3585.5,1.54]
[1732900102530,3.2078,3585.8,3585.7,0.27862]
[1732900102835,3.2078,3585.8,3585.7,1.81862]
[1732900103042,3.2078,3586.2,3586.1,0.27858]
[1732900103240,0.4174,3587.1,3587.0,0.27851]
[1732900103241,3.2078,3587.1,3587.0,0.27851]
[1732900103537,3.2078,3587.1,3587.0,1.81851]
[1732900103732,3.2078,3587.1,3587.0,1.54]
[1732900103938,3.2078,3587.1,3587.0,1.81851]
[1732900104236,3.2078,3587.1,3587.0,1.54]
[1732900104828,3.2078,3587.1,3587.0,1.81851]
[1732900105632,3.2078,3587.6,3587.0,1.54]
[1732900106034,3.2078,3587.4,3587.0,1.54]
[1732900106441,3.2078,3587.4,3587.1,1.54]
[1732900106631,3.2078,3587.4,3586.9,0.27854]
[1732900106831,3.2078,3587.0,3586.2,0.65341]
[1732900107029,3.2078,3586.5,3585.7,1.608]
[1732900107228,3.28806312,3587.5,3585.7,1.608]
[1732900107229,3.2078,3585.8,3585.7,1.608]
[1732900107440,3.2078,3585.8,3585.3,3.28806312]
[1732900107739,3.2078,3585.8,3585.7,0.55737709]
[1732900108235,3.2078,3585.8,3585.7,0.27873709]
[1732900108440,3.2078,3585.8,3585.7,0.55737709]
[1732900109036,3.2078,3585.8,3585.7,2.16537709]
[1732900109229,3.2078,3585.8,3585.7,0.27873709]
[1732900109435,3.2078,3585.8,3585.7,1.88673709]
[1732900109830,3.2078,3585.8,3585.7,2.16537709]
[1732900110330,3.2078,3585.8,3585.7,1.88673709]
[1732900110532,3.2078,3585.8,3585.1,41.2315]
[1732900110735,3.2078,3585.3,3584.0,0.27878216]
[1732900110939,3.2078,3584.5,3584.1,1.608]
[1732900111231,3.2078,3584.5,3584.4,0.27874]
[1732900111632,3.2078,3584.9,3584.8,0.27871]
[1732900112037,3.2078,3585.3,3585.2,0.27868]
[1732900112839,3.2078,3585.3,3585.2,1.88768]
[1732900113433,3.2078,3585.3,3585.2,1.609]
[1732900114041,3.2078,3585.3,3585.1,0.27868]
[1732900114237,3.2078,3585.3,3585.1,1.609]
[1732900114441,3.2078,3585.3,3585.1,1.88769]
[1732900114633,3.2078,3585.3,3585.1,1.609]
[1732900114827,0.27868,3585.2,3584.6,41.07873]
[1732900115035,0.69662,3585.7,3584.5,0.27873]
[1732900115036,3.2078,3584.7,3584.5,0.27873]
[1732900115232,3.2078,3584.7,3584.6,1.609]
[1732900115431,3.2078,3584.7,3584.3,0.4297]
[1732900115639,3.2078,3584.7,3584.4,1.609]
[1732900115938,3.2078,3584.7,3584.6,0.27873]
[1732900116129,3.2078,3585.1,3584.5,1.609]
[1732900116332,3.2078,3585.1,3585.0,0.2787]
[1732900116636,3.2078,3585.1,3585.0,1.8877]
[1732900117037,3.2078,3585.1,3585.0,0.2787]
[1732900117233,3.2078,3585.1,3585.0,1.609]
[1732900117430,0.2787,3585.0,3584.0,0.55755216]
[1732900117734,0.27874,3584.4,3584.0,0.27878216]
[1732900118033,5.0,3585.1,3584.0,0.55755216]
[1732900118034,3.2078,3584.1,3584.0,0.55755216]
[1732900118235,3.2078,3584.1,3584.0,2.16655216]
[1732900118843,3.2078,3584.1,3584.0,1.88778216]
[1732900119032,3.2078,3584.1,3583.5,6.972]
[1732900119232,3.2078,3583.7,3583.5,6.972]
[1732900120039,3.4866,3583.7,3583.3,0.01426]
[1732900120337,3.2078,3583.7,3583.3,0.01426]
[1732900120932,3.2078,3583.7,3583.3,0.29309]
[1732900121343,3.2078,3583.7,3583.3,0.01426]
[1732900121535,3.2078,3583.7,3583.6,0.27881]
[1732900122040,3.2078,3583.7,3583.6,1.609]
[1732900122242,3.2078,3583.7,3583.6,1.88781]
[1732900124239,3.2078,3583.7,3583.6,0.27881]
[1732900124534,3.2078,3584.2,3584.1,0.27877]
[1732900124740,3.2078,3584.2,3584.1,0.84877]
[1732900125048,0.4179,3585.4,3584.7,0.27872]
[1732900125049,3.2078,3584.8,3584.7,0.27872]
[1732900125445,3.2078,3584.8,3584.7,1.88772]
[1732900126141,0.27872,3584.7,3583.8,0.69698]
[1732900126345,3.2078,3584.0,3583.9,1.88778]
[1732900127647,3.2078,3584.0,3583.9,1.609]
[1732900128046,3.2078,3584.0,3583.9,1.88778]
[1732900128648,0.69672,3585.2,3583.9,1.609]
[1732900128649,3.2078,3584.5,3583.9,1.609]
[1732900128845,3.2078,3584.1,3584.0,0.27878]
[1732900129947,3.2078,3584.1,3584.0,1.88778]
[1732900130553,3.2078,3584.1,3583.6,0.4175]
[1732900130743,3.4866,3583.7,3583.1,1.609]
[1732900130943,0.27881,3583.6,3583.1,1.609]
[1732900131144,3.2078,3583.3,3582.6,0.4325]
[1732900131347,3.2078,3583.3,3583.0,1.88785]
[1732900131549,3.2078,3583.3,3583.0,1.609]
[1732900131752,3.2078,3583.3,3583.0,1.88785]
[1732900132352,3.2078,3583.3,3583.0,1.609]
[1732900132546,3.2078,3583.3,3583.1,0.27884]
[1732900132846,3.2078,3583.3,3582.5,0.27892213]
[1732900133051,3.2078,3583.3,3582.8,1.544]
[1732900133243,8.90489,3583.3,3582.1,0.02206]
[1732900133444,3.2078,3582.2,3582.1,0.02206]
[1732900133650,3.2078,3582.2,3582.1,0.30098]
[1732900134952,3.2078,3582.2,3582.1,0.02206]
[1732900135346,3.2078,3582.2,3582.1,0.30098]
[1732900136251,3.2078,3582.2,3582.1,1.84498]
[1732900136451,3.2078,3582.2,3582.1,0.30098]
[1732900136747,3.2078,3582.2,3582.1,42.64498]
[1732900137451,3.2078,3582.2,3582.1,41.10098]
[1732900137745,3.2078,3582.2,3582.1,0.30098]
[1732900137953,3.2078,3582.2,3582.1,0.02206]
[1732900138355,3.2078,3582.2,3582.1,0.30098]
[1732900138546,3.2078,3582.2,3582.1,0.02206]
[1732900138850,3.2078,3582.2,3582.1,1.84498]
[1732900139047,3.2078,3582.2,3582.1,1.56606]
[1732900139547,3.2078,3582.2,3582.1,1.84498]
[1732900139748,3.2078,3582.2,3582.1,1.56606]
[1732900139946,3.2078,3582.2,3582.1,0.30098]
[1732900140550,3.2078,3582.6,3582.1,0.02206]
[1732900140945,3.2078,3582.6,3582.5,0.27889]
[1732900141149,3.2078,3582.6,3582.1,0.02206]
[1732900141351,3.2078,3582.6,3582.5,0.27889]
[1732900141755,3.2078,3583.1,3583.0,0.27885]
[1732900141960,3.2078,3583.1,3582.3,1.545]
[1732900141961,3.2078,3583.1,3582.4,0.4257]
[1732900142254,3.2078,3583.1,3582.3,1.545]
[1732900142255,3.2078,3583.1,3582.6,0.27888]
[1732900142453,3.2078,3582.7,3582.4,0.27889]
[1732900142654,3.2078,3582.7,3582.4,1.545]
[1732900142847,3.2078,3582.7,3582.5,0.27889]
[1732900143255,3.2078,3582.7,3582.4,1.545]
[1732900143453,3.2078,3582.7,3582.2,0.4166]
[1732900143648,3.2078,3582.3,3582.2,1.545]
[1732900143852,3.2078,3582.3,3581.4,0.4127]
[1732900143853,3.2078,3582.3,3581.4,0.8293]
[1732900144048,3.2078,3581.9,3581.8,0.27895]
[1732900144345,3.2078,3581.9,3581.8,1.82395]
[1732900144748,0.449,3582.9,3582.2,0.27891]
[1732900144749,3.2078,3582.3,3582.2,0.27891]
[1732900144953,3.2078,3582.3,3581.8,1.545]
[1732900145348,3.2078,3582.3,3582.2,0.27892]
[1732900145750,3.2078,3582.3,3581.8,1.545]
[1732900145751,3.2078,3582.7,3582.0,2.96078019]
[1732900146052,3.2078,3583.1,3582.2,0.6973]
[1732900146255,3.2078,3583.1,3583.0,0.27885]
[1732900147254,3.2078,3583.1,3582.9,1.545]
[1732900147255,3.2078,3583.1,3582.9,1.82386]
[1732900147460,3.2078,3583.1,3582.9,1.545]
[1732900148459,3.48665,3583.1,3582.9,1.545]
[1732900148957,3.2078,3583.1,3582.9,1.545]
[1732900149254,3.2078,3583.1,3581.9,0.68625855]
[1732900149457,3.2078,3582.0,3581.5,0.02596]
[1732900149664,3.2078,3582.0,3581.9,0.27894]
[1732900150756,3.2078,3582.0,3581.5,0.02596]
[1732900151153,3.48674,3582.0,3581.5,0.02596]
[1732900151456,3.2078,3582.0,3581.9,0.27894]
[1732900151958,3.2078,3582.6,3582.5,0.27889]
[1732900152256,3.2078,3583.0,3582.9,0.27886]
[1732900152657,3.2078,3583.5,3583.4,0.27882]
[1732900153062,3.2078,3585.2,3583.4,6.849]
[1732900153256,3.48648,3585.2,3584.6,0.27872]
[1732900153559,3.2078,3584.8,3584.7,0.27872]
[1732900154459,3.2078,3584.8,3584.7,1.88672]
[1732900154659,3.2078,3585.2,3585.0,0.27869]
[1732900154959,3.2078,3585.2,3584.7,1.608]
[1732900154960,3.2078,3585.2,3585.1,0.27869]
[1732900155463,0.69644,3586.7,3584.8,3.2078]
[1732900155464,3.2078,3586.2,3584.8,3.2078]
[1732900155664,3.2078,3586.2,3585.2,3.2078]
[1732900155959,3.2078,3586.2,3586.1,0.27861]
[1732900156160,3.2078,3586.2,3586.0,1.608]
[1732900156364,3.6353,3586.6,3586.1,0.27861]
[1732900156563,3.2078,3586.6,3586.3,0.27859]
[1732900156760,3.2078,3586.6,3586.4,0.27858]
[1732900156960,3.2078,3586.6,3586.0,1.608]
[1732900157156,3.2078,3586.6,3586.1,0.27861]
[1732900157360,3.2078,3586.6,3586.0,1.608]
[1732900157361,3.2078,3587.0,3586.4,0.27859]
[1732900157568,0.59275102,3586.9,3586.0,1.608]
[1732900157763,3.2078,3587.0,3586.4,0.27859]
[1732900158063,3.2078,3587.3,3586.4,3.2078]
[1732900158460,3.2078,3587.3,3586.9,0.27854]
[1732900158759,3.2078,3587.3,3586.4,3.2078]
[1732900158962,3.2078,3587.3,3586.3,0.27859]
[1732900158963,3.2078,3586.6,3586.3,0.27859]
[1732900159266,3.2078,3586.6,3586.2,1.8866]
[1732900159462,3.2078,3586.6,3586.2,1.608]
[1732900159965,3.2078,3586.6,3586.2,1.8866]
[1732900160165,3.2078,3586.6,3586.1,1.88661]
[1732900160363,3.2078,3586.6,3586.2,0.2786]
[1732900160572,3.2078,3586.6,3586.3,0.2786]
[1732900160864,3.2078,3586.7,3586.6,0.27857]
[1732900161165,3.2078,3586.7,3586.1,1.608]
[1732900161668,0.858,3587.0,3586.1,4.8158]
[1732900162167,0.858,3587.0,3586.1,8.11616824]
[1732900162369,3.2078,3587.1,3586.2,0.69652]
[1732900162568,3.2078,3587.1,3587.0,0.27854]
[1732900162773,3.2078,3587.6,3586.6,3.30036824]
[1732900162964,3.2078,3587.2,3586.9,0.27855]
[1732900163366,3.2078,3587.2,3586.2,0.4325]
[1732900163573,3.2078,3587.2,3586.3,1.8856]
[1732900163871,3.2078,3587.2,3586.3,1.777]
[1732900164274,3.2078,3587.2,3586.6,0.27857]
[1732900164473,3.2078,3586.8,3585.9,0.27879537]
[1732900164768,3.2078,3586.4,3586.0,1.607]
[1732900164975,3.2078,3586.4,3586.0,1.88561]
[1732900165274,3.2078,3586.4,3586.0,1.607]
[1732900165486,0.4375,3587.4,3586.0,1.607]
[1732900165487,3.2078,3586.9,3586.0,1.607]
[1732900165770,0.4182,3587.7,3586.0,1.607]
[1732900165771,3.2078,3587.3,3586.8,0.27855]
[1732900165967,3.2078,3587.3,3587.1,0.27853]
[1732900166165,3.2078,3587.3,3586.3,3.2078]
[1732900166166,3.2078,3587.3,3587.0,0.27854]
[1732900166373,3.2078,3587.3,3586.3,3.2078]
[1732900166571,3.2078,3587.3,3586.3,3.8878]
[1732900166967,3.2078,3587.3,3586.8,0.27855]
[1732900167368,3.2078,3587.3,3586.4,0.27859]
[1732900167568,3.2078,3587.3,3586.5,1.607]
[1732900167770,3.2078,3587.3,3586.5,1.757]
[1732900168171,3.2078,3587.3,3587.1,0.27853]
[1732900168372,3.2078,3587.3,3586.5,1.607]
[1732900168574,3.2078,3587.3,3586.5,0.74]
[1732900168772,3.2078,3587.3,3586.9,0.27855]
[1732900168969,3.2078,3587.3,3586.6,1.607]
[1732900169374,3.2078,3587.6,3586.8,3.2078]
[1732900169582,3.2078,3587.6,3587.1,0.27853]
[1732900169774,3.2078,3587.6,3586.8,3.2078]
[1732900170278,3.4863,3587.6,3587.0,0.27854]
[1732900170471,3.4863,3587.6,3586.9,1.607]
[1732900170472,0.27851,3587.5,3586.9,1.607]
[1732900170676,0.27851,3587.5,3586.9,1.88555]
[1732900171374,0.4182,3587.7,3586.9,1.607]
[1732900171375,3.2078,3587.2,3586.9,1.607]
[1732900171579,3.48633,3587.2,3586.7,0.27857]
[1732900171776,5.4182,3587.7,3585.9,4.18316537]
[1732900171777,3.2078,3586.8,3585.9,4.18316537]
[1732900171979,3.2078,3586.8,3586.4,0.27858]
[1732900172181,3.2078,3586.8,3586.0,1.607]
[1732900172182,0.71367,3586.7,3586.2,0.2786]
[1732900172673,0.4351,3586.7,3586.0,1.607]
[1732900172874,3.2078,3586.8,3586.0,1.607]
[1732900173071,3.2078,3587.2,3586.0,1.837]
[1732900173376,3.2078,3587.2,3586.1,0.69654]
[1732900173577,3.2078,3587.2,3586.2,0.69652]
[1732900173880,0.27854,3587.1,3586.0,1.607]
[1732900174080,3.2078,3587.2,3586.0,1.857]
[1732900174378,0.4351,3587.3,3586.1,1.607]
[1732900174379,3.2078,3586.8,3586.1,1.607]
[1732900174575,3.2078,3586.8,3586.6,0.27857]
[1732900174777,3.2078,3586.8,3586.1,1.747]
[1732900174778,0.27854,3587.1,3586.7,0.27857]
[1732900175277,0.27854,3587.1,3586.6,0.27857]
[1732900175477,3.2078,3587.2,3586.1,1.607]
[1732900175677,3.48633,3587.2,3586.7,0.27856]
[1732900176073,3.2078,3586.8,3585.9,0.27879537]
[1732900176274,3.2078,3586.3,3585.4,0.4462]
[1732900176477,3.2078,3585.9,3585.3,1.607]
[1732900176875,3.2078,3585.9,3585.5,0.27866]
[1732900177072,3.2078,3585.9,3585.3,1.607]
[1732900177073,3.2078,3586.3,3585.8,0.27864]
[1732900177282,3.2078,3586.3,3585.4,0.69667]
[1732900177283,3.2078,3586.3,3585.7,2.95572009]
[1732900177876,3.2078,3586.3,3586.1,0.27861]
[1732900178086,3.2078,3586.3,3586.2,0.2786]
[1732900178287,3.2078,3586.3,3586.1,0.27861]
[1732900178486,3.2078,3586.3,3586.2,0.2786]
[1732900178688,3.2078,3586.7,3586.2,0.2786]
[1732900178883,0.4469,3586.9,3586.5,2.95572009]
[1732900179082,0.58703802,3586.8,3586.7,0.27856]
[1732900179290,0.4469,3586.9,3586.1,3.65226009]
[1732900179581,0.4469,3586.9,3586.5,0.27857]
[1732900179778,0.4469,3586.9,3586.1,3.68226009]
[1732900179779,0.4469,3586.9,3586.1,2.95572009]
[1732900179982,3.2078,3586.8,3585.7,3.2078]
[1732900180180,0.4469,3586.9,3585.3,3.65241009]
[1732900180181,3.2078,3586.4,3585.3,3.65241009]
[1732900180387,3.2078,3586.3,3585.7,2.95572009]
[1732900180989,0.4469,3586.9,3586.3,0.27859]
[1732900180990,3.2078,3586.8,3586.3,0.27859]
[1732900181289,0.58758865,3586.7,3586.2,0.2786]
[1732900181584,0.58758865,3586.6,3586.1,2.95572009]
[1732900181890,0.58758865,3586.5,3586.1,2.95572009]
[1732900182192,0.58882844,3586.4,3586.1,2.95572009]
[1732900182381,0.58882844,3586.3,3586.2,0.2786]
[1732900182577,0.59031953,3586.3,3586.1,2.95572009]
[1732900182784,3.2078,3586.8,3586.5,0.27858]
[1732900182983,0.5902486,3586.7,3586.3,0.27859]
[1732900183183,0.5902486,3586.7,3586.1,2.95572009]
[1732900183184,0.5902486,3586.6,3586.1,2.95572009]
[1732900183383,3.2078,3586.8,3586.4,0.27859]
[1732900183384,0.5902486,3586.5,3586.4,0.27859]
[1732900183583,0.5902486,3586.7,3586.4,1.611]
[1732900183789,0.5902486,3586.6,3586.4,1.88959]
[1732900183986,0.5902486,3586.5,3586.4,1.88959]
[1732900184192,0.5902486,3586.7,3586.4,1.611]
[1732900184391,0.5902486,3586.6,3586.4,1.611]
[1732900184596,0.5902486,3586.5,3586.4,1.611]
[1732900184788,0.5902486,3586.5,3586.4,1.88959]
[1732900185484,0.5902486,3586.5,3586.4,0.27859]
[1732900186589,0.5902486,3586.5,3586.3,1.88959]
[1732900186785,3.48636,3586.8,3586.2,1.611]
[1732900186786,0.5902486,3586.4,3586.2,1.611]
[1732900186990,0.5902486,3586.3,3586.2,1.8896]
[1732900187191,0.5902486,3586.3,3586.2,1.611]
[1732900187386,0.5902486,3586.3,3586.2,1.8896]
[1732900188084,0.5902486,3586.3,3586.2,1.611]
[1732900188487,0.5902486,3586.3,3586.2,1.8896]
[1732900188690,0.5902486,3586.3,3585.6,40.8]
[1732900188885,3.2078,3585.9,3585.3,1.611]
[1732900189091,0.8688886,3585.8,3585.3,1.88967]
[1732900189295,0.5902486,3585.7,3585.3,1.88967]
[1732900189496,0.6965,3586.4,3585.3,1.88967]
[1732900189497,3.2078,3585.4,3585.3,0.27867]
[1732900189693,3.2078,3585.9,3585.1,1.611]
[1732900189898,0.54073946,3585.8,3585.6,0.27865]
[1732900190089,3.2078,3585.9,3585.1,1.611]
[1732900190289,0.54072271,3585.8,3585.1,1.611]
[1732900190495,3.2078,3585.9,3585.6,0.27865]
[1732900190695,0.54053745,3585.8,3585.1,1.611]
[1732900190893,0.27864,3585.8,3585.4,0.27866]
[1732900191293,3.2078,3585.9,3585.3,2.95572009]
[1732900191592,3.2078,3585.9,3585.6,0.27865]
[1732900191797,3.48643,3585.9,3585.4,0.27867]
[1732900192099,3.48643,3585.9,3585.3,2.95572009]
[1732900192100,0.54043055,3585.8,3585.5,0.27866]
[1732900192291,3.2078,3585.9,3585.8,0.27864]
[1732900192897,3.2078,3585.9,3585.4,0.27866]
[1732900192898,3.48643,3585.9,3585.4,0.27866]
[1732900193199,3.48643,3585.9,3585.3,2.95572009]
[1732900193200,3.2078,3585.9,3585.3,2.95572009]
[1732900193495,3.2078,3585.9,3584.9,3.37102009]
[1732900193496,0.81873677,3585.8,3584.9,3.37102009]
[1732900193698,0.81873677,3585.7,3585.3,0.27867]
[1732900193896,3.2078,3585.4,3585.3,0.27867]
[1732900194096,3.2078,3585.4,3585.2,0.27868]
[1732900194292,3.2078,3585.4,3585.0,1.611]
[1732900194593,3.2078,3585.4,3585.3,0.27867]
[1732900194799,3.2078,3585.4,3585.2,0.27868]
[1732900195399,3.2078,3585.4,3585.1,1.611]
[1732900195400,3.2078,3585.4,3585.3,0.27867]
[1732900197596,3.2078,3585.4,3585.3,3.23439009]
[1732900197798,3.2078,3586.2,3585.3,2.96572009]
[1732900198006,3.2078,3586.2,3585.9,0.27863]
[1732900198502,3.2078,3586.2,3585.7,2.95572009]
[1732900198806,3.2078,3586.2,3586.1,0.27861]
[1732900199200,3.2078,3586.2,3585.8,0.4556]
[1732900199503,3.2078,3586.2,3585.8,0.01]
[1732900199707,3.48641,3586.2,3585.8,0.27864]
[1732900200001,3.2078,3586.2,3585.4,0.69667]
[1732900200194,3.2078,3586.2,3586.0,0.27862]
[1732900200508,3.2078,3586.2,3585.4,0.76667]
[1732900200509,3.2078,3586.2,3586.1,0.27861]